[Event "Championnat d'Europe Rapide"]
[Date "2024.12.08"]
[White "Fedoseev, Vladimir"]
[Black "Van Foreest, Jorden"]
[WhiteElo "2709"]
[BlackElo "2677"]
[Round "8.1"]
[Result "1-0"]
[TimeControl "900+10"]

1. d4 {[%emt 00:00:03] [%clk 00:15:16]} Nf6 {[%emt 00:00:04] [%clk 00:15:16]} 2.
c4 {[%emt 00:00:29] [%clk 00:14:57]} e6 {[%emt 00:00:09] [%clk 00:15:17]} 3. Nf3
{[%emt 00:00:03] [%clk 00:15:03]} b6 {[%emt 00:00:33] [%clk 00:14:55]} 4. g3
{[%emt 00:00:02] [%clk 00:15:10]} Bb7 {[%emt 00:00:08] [%clk 00:14:58]} 5. Bg2
{[%emt 00:00:02] [%clk 00:15:18]} Be7 {[%emt 00:00:12] [%clk 00:14:56]} 6. O-O
{[%emt 00:00:04] [%clk 00:15:24]} O-O {[%emt 00:00:07] [%clk 00:14:59]} 7. Re1
{[%emt 00:00:03] [%clk 00:15:31]} a5 {[%emt 00:01:45] [%clk 00:13:24]} 8. Bf4
{[%emt 00:00:02] [%clk 00:15:39]} d6 {[%emt 00:01:03] [%clk 00:12:31]} 9. Nc3
{[%emt 00:00:01] [%clk 00:15:48]} Ne4 {[%emt 00:00:11] [%clk 00:12:29]} 10. Nb5
{[%emt 00:00:02] [%clk 00:15:56]} f5 {[%emt 00:01:57] [%clk 00:10:42]} 11. Nd2
{[%emt 00:04:40] [%clk 00:11:27]} Nd7 {[%emt 00:02:14] [%clk 00:08:38]} 12. Nxe4
{[%emt 00:00:18] [%clk 00:11:18]} Bxe4 {[%emt 00:00:05] [%clk 00:08:43]} 13.
Bxe4 {[%emt 00:00:42] [%clk 00:10:46]} fxe4 {[%emt 00:00:02] [%clk 00:08:51]}
14. Nc3 {[%emt 00:00:35] [%clk 00:10:21]} Qe8 {[%emt 00:03:34] [%clk 00:05:27]}
15. Qc2 {[%emt 00:03:12] [%clk 00:07:19]} e5 {[%emt 00:00:02] [%clk 00:05:35]}
16. Be3 {[%emt 00:00:38] [%clk 00:06:52]} exd4 {[%emt 00:00:25] [%clk 00:05:19]}
17. Bxd4 {[%emt 00:00:01] [%clk 00:07:01]} Bf6 {[%emt 00:00:55] [%clk 00:04:35]}
18. Rad1 {[%emt 00:00:01] [%clk 00:07:10]} Nc5 {[%emt 00:01:26] [%clk 00:03:19]}
19. Qd2 {[%emt 00:00:02] [%clk 00:07:17]} Qf7 {[%emt 00:00:43] [%clk 00:02:47]}
20. Bxf6 {[%emt 00:01:27] [%clk 00:06:00]} Qxf6 {[%emt 00:00:01] [%clk
00:02:55]} 21. Qe3 {[%emt 00:00:30] [%clk 00:05:40]} Rae8 {[%emt 00:00:10] [%clk
00:02:56]} 22. Rd5 {[%emt 00:00:30] [%clk 00:05:20]} h6 {[%emt 00:00:17] [%clk
00:02:49]} 23. h4 {[%emt 00:00:21] [%clk 00:05:08]} Qf7 {[%emt 00:00:16] [%clk
00:02:43]} 24. b3 {[%emt 00:00:43] [%clk 00:04:36]} Re6 {[%emt 00:00:40] [%clk
00:02:12]} 25. Rd4 {[%emt 00:00:25] [%clk 00:04:22]} Re5 {[%emt 00:00:16] [%clk
00:02:05]} 26. Kg2 {[%emt 00:00:16] [%clk 00:04:16]} Qg6 {[%emt 00:00:41] [%clk
00:01:35]} 27. Rd5 {[%emt 00:00:03] [%clk 00:04:23]} Re7 {[%emt 00:00:08] [%clk
00:01:36]} 28. h5 {[%emt 00:01:07] [%clk 00:03:27]} Qg4 {[%emt 00:00:13] [%clk
00:01:32]} 29. Rh1 {[%emt 00:00:13] [%clk 00:03:24]} Ref7 {[%emt 00:00:09] [%clk
00:01:33]} 30. Nd1 {[%emt 00:00:02] [%clk 00:03:33]} Ne6 {[%emt 00:00:05] [%clk
00:01:38]} 31. Kf1 {[%emt 00:00:40] [%clk 00:03:03]} Ng5 {[%emt 00:00:07] [%clk
00:01:40]} 32. Ke1 {[%emt 00:00:43] [%clk 00:02:30]} Qe6 {[%emt 00:00:21] [%clk
00:01:28]} 33. Kd2 {[%emt 00:00:04] [%clk 00:02:36]} c6 {[%emt 00:00:11] [%clk
00:01:28]} 34. Rd4 {[%emt 00:00:01] [%clk 00:02:45]} Qe5 {[%emt 00:00:14] [%clk
00:01:24]} 35. Kc2 {[%emt 00:00:32] [%clk 00:02:22]} b5 {[%emt 00:00:32] [%clk
00:01:02]} 36. cxb5 {[%emt 00:00:02] [%clk 00:02:30]} cxb5 {[%emt 00:00:31]
[%clk 00:00:42]} 37. Kb1 {[%clk 00:02:39]} b4 {[%emt 00:00:04] [%clk 00:00:47]}
38. Qd2 {[%emt 00:00:24] [%clk 00:02:26]} Rxf2 {[%emt 00:00:45] [%clk 00:00:11]}
39. Nxf2 {[%emt 00:00:03] [%clk 00:02:33]} e3 {[%clk 00:00:21]} 40. Ng4 {[%emt
00:00:09] [%clk 00:02:33]} exd2 {[%emt 00:00:13] [%clk 00:00:18]} 41. Nxe5
{[%emt 00:00:01] [%clk 00:02:42]} dxe5 {[%emt 00:00:02] [%clk 00:00:26]} 42.
Rxd2 {[%emt 00:00:46] [%clk 00:02:06]} Ne4 {[%emt 00:00:01] [%clk 00:00:35]} 43.
Rc2 {[%emt 00:00:47]} Rf2 {[%clk 00:00:23]} 44. Kb2 {[%emt 00:00:13] [%clk
00:01:49]} Nxg3 {[%emt 00:00:07] [%clk 00:00:26]} 45. Rh4 {[%emt 00:00:01] [%clk
00:01:58]} Nf5 {[%emt 00:00:06] [%clk 00:00:30]} 46. Re4 {[%emt 00:00:05] [%clk
00:02:02]} Nd4 {[%emt 00:00:09] [%clk 00:00:32]} 47. Rc8+ {[%emt 00:00:02] [%clk
00:02:10]} Kf7 {[%emt 00:00:19] [%clk 00:00:21]} 48. Rxe5 {[%emt 00:00:02] [%clk
00:02:19]} Rh2 {[%emt 00:00:03] [%clk 00:00:28]} 49. Rcc5 {[%emt 00:00:33] [%clk
00:01:57]} Kf6 {[%emt 00:00:21] [%clk 00:00:18]} 50. Re4 {[%emt 00:00:21] [%clk
00:01:45]} Nxe2 {[%emt 00:00:15] [%clk 00:00:13]} 51. Rc2 {[%emt 00:00:10] [%clk
00:01:44]} Ng3 {[%emt 00:00:01] [%clk 00:00:23]} 52. Rxh2 {[%emt 00:00:28] [%clk
00:01:26]} Nxe4 {[%emt 00:00:01] [%clk 00:00:32]} 53. Rg2 {[%emt 00:00:03] [%clk
00:01:32]} Kf7 {[%emt 00:00:27] [%clk 00:00:14]} 54. a4 {[%emt 00:00:12] [%clk
00:01:32]} Nf6 {[%emt 00:00:04] [%clk 00:00:19]} 55. Re2 {[%emt 00:00:31] [%clk
00:01:11]} Nxh5 {[%emt 00:00:04] [%clk 00:00:26]} 56. Re5 {[%clk 00:01:20]} g5
{[%emt 00:00:22] [%clk 00:00:15]} 57. Rxa5 {[%emt 00:00:02] [%clk 00:01:28]} Nf4
{[%emt 00:00:01] [%clk 00:00:23]} 58. Rb5 {[%emt 00:00:17] [%clk 00:01:22]} Ke6
{[%emt 00:00:18] [%clk 00:00:14]} 59. a5 {[%emt 00:00:01] [%clk 00:01:31]} g4
{[%emt 00:00:12] [%clk 00:00:12]} 60. a6 {[%emt 00:00:01] [%clk 00:01:40]} g3
{[%emt 00:00:09] [%clk 00:00:13]} 61. a7 {[%emt 00:00:19] [%clk 00:01:31]} Nd3+
{[%emt 00:00:01] [%clk 00:00:21]} 62. Kc2 {[%emt 00:00:05] [%clk 00:01:36]} Ne1+
{[%emt 00:00:05] [%clk 00:00:26]} 63. Kd1 {[%emt 00:00:21] [%clk 00:01:24]}

[Site "Europe Echecs"]

[Event "Championnat d'Europe Rapide"]
[Date "2024.12.08"]
[White "Jobava, Baadur"]
[Black "Sargissian, Gabriel"]
[WhiteElo "2578"]
[BlackElo "2628"]
[Round "8.2"]
[Result "1/2-1/2"]
[TimeControl "900+10"]

1. d4 {[%emt 00:00:06] [%clk 00:15:14]} d5 {[%emt 00:00:03] [%clk 00:15:18]} 2.
Nc3 {[%emt 00:00:03] [%clk 00:15:21]} Nf6 {[%emt 00:00:12] [%clk 00:15:16]} 3.
Bf4 {[%emt 00:00:02] [%clk 00:15:29]} c5 {[%emt 00:00:26] [%clk 00:15:00]} 4. e3
{[%emt 00:00:03] [%clk 00:15:36]} cxd4 {[%emt 00:00:15] [%clk 00:14:55]} 5. exd4
{[%emt 00:00:02] [%clk 00:15:44]} a6 {[%emt 00:00:03] [%clk 00:15:02]} 6. Bd3
{[%emt 00:00:02] [%clk 00:15:52]} Nc6 {[%emt 00:00:03] [%clk 00:15:10]} 7. Nge2
{[%emt 00:00:01] [%clk 00:16:00]} e6 {[%emt 00:00:43] [%clk 00:14:37]} 8. Qd2
{[%emt 00:00:17] [%clk 00:15:53]} b5 {[%emt 00:00:33] [%clk 00:14:14]} 9. O-O
{[%emt 00:00:11] [%clk 00:15:52]} Be7 {[%emt 00:00:11] [%clk 00:14:13]} 10. Rfe1
{[%emt 00:00:06] [%clk 00:15:56]} O-O {[%emt 00:00:11] [%clk 00:14:12]} 11. h3
{[%emt 00:00:11] [%clk 00:15:54]} Bb7 {[%emt 00:00:18] [%clk 00:14:05]} 12. a3
{[%emt 00:00:23] [%clk 00:15:41]} Rc8 {[%emt 00:00:08] [%clk 00:14:08]} 13. Rad1
{[%emt 00:03:34] [%clk 00:12:16]} Na5 {[%emt 00:00:22] [%clk 00:13:56]} 14. Qc1
{[%emt 00:06:27] [%clk 00:05:59]} Nc4 {[%emt 00:00:10] [%clk 00:13:57]} 15. Bg5
{[%emt 00:00:16] [%clk 00:05:52]} Ne4 {[%emt 00:02:55] [%clk 00:11:13]} 16. Bxe7
{[%emt 00:00:03] [%clk 00:05:58]} Qxe7 {[%emt 00:00:02] [%clk 00:11:21]} 17.
Bxc4 {[%emt 00:03:23] [%clk 00:02:45]} Rxc4 {[%emt 00:00:03] [%clk 00:11:28]}
18. Rd3 {[%emt 00:00:38] [%clk 00:02:17]} Rfc8 {[%emt 00:00:30]} 19. Qe3 {[%clk
00:02:07]} h6 {[%emt 00:03:12] [%clk 00:08:26]} 20. Nxe4 {[%emt 00:00:13] [%clk
00:02:04]} dxe4 {[%emt 00:00:05] [%clk 00:08:31]} 21. Rc3 {[%emt 00:00:01] [%clk
00:02:13]} Rxc3 {[%emt 00:00:42] [%clk 00:07:58]} 22. Nxc3 {[%emt 00:00:01]
[%clk 00:02:21]} Qg5 {[%emt 00:00:30] [%clk 00:07:39]} 23. Re2 {[%emt 00:00:41]
[%clk 00:01:50]} f5 {[%emt 00:00:43] [%clk 00:07:07]} 24. g3 {[%emt 00:00:01]
[%clk 00:01:58]} Rf8 {[%emt 00:02:19] [%clk 00:04:59]} 25. h4 {[%emt 00:00:01]
[%clk 00:02:06]} Qg4 {[%emt 00:00:08] [%clk 00:05:01]} 26. Qf4 {[%emt 00:00:03]
[%clk 00:02:14]} Qxf4 {[%emt 00:00:31] [%clk 00:04:39]} 27. gxf4 {[%emt
00:00:01] [%clk 00:02:22]} Kf7 {[%emt 00:00:10] [%clk 00:04:40]} 28. Rd2 {[%emt
00:00:29] [%clk 00:02:04]} Kg6 {[%emt 00:00:33] [%clk 00:04:16]} 29. Kh2 {[%emt
00:00:01] [%clk 00:02:12]} Kh5 {[%emt 00:00:10] [%clk 00:04:17]} 30. Kh3 {[%emt
00:00:01] [%clk 00:02:21]} g5 {[%emt 00:00:36] [%clk 00:03:51]} 31. hxg5 {[%emt
00:00:02] [%clk 00:02:30]} hxg5 {[%clk 00:04:00]} 32. Kg3 {[%emt 00:00:19] [%clk
00:02:21]} Kg6 {[%emt 00:00:44] [%clk 00:03:26]} 33. d5 {[%emt 00:00:12] [%clk
00:02:19]} Rd8 {[%emt 00:00:09] [%clk 00:03:28]} 34. d6 {[%emt 00:00:01] [%clk
00:02:28]} gxf4+ {[%emt 00:00:20] [%clk 00:03:17]} 35. Kxf4 {[%emt 00:00:01]
[%clk 00:02:37]} Kf6 {[%emt 00:00:02] [%clk 00:03:26]} 36. a4 {[%emt 00:00:55]
[%clk 00:01:52]} b4 {[%emt 00:00:54] [%clk 00:02:42]} 37. Na2 {[%emt 00:00:11]
[%clk 00:01:50]} e5+ {[%emt 00:00:12] [%clk 00:02:41]} 38. Ke3 {[%emt 00:00:01]
[%clk 00:01:59]} f4+ {[%emt 00:00:01] [%clk 00:02:50]} 39. Ke2 {[%emt 00:00:01]
[%clk 00:02:08]} a5 {[%emt 00:00:15] [%clk 00:02:44]} 40. c4 {[%emt 00:00:21]
[%clk 00:01:57]} bxc3 {[%emt 00:00:42] [%clk 00:02:12]} 41. Nxc3 {[%emt
00:00:01] [%clk 00:02:06]} Ke6 {[%emt 00:00:04] [%clk 00:02:18]} 42. Rd1 {[%emt
00:00:36] [%clk 00:01:40]} Rxd6 {[%emt 00:00:28] [%clk 00:02:01]} 43. Rh1 {[%emt
00:00:01] [%clk 00:01:49]} Ba6+ {[%emt 00:00:44] [%clk 00:01:26]} 44. Ke1 {[%emt
00:00:01] [%clk 00:01:58]} Bd3 {[%emt 00:00:14] [%clk 00:01:23]} 45. Rh6+ {[%emt
00:00:22] [%clk 00:01:45]} Kd7 {[%emt 00:00:02] [%clk 00:01:31]} 46. Rh7+ {[%emt
00:00:02] [%clk 00:01:54]} Kc6 {[%emt 00:00:15] [%clk 00:01:25]} 47. Re7 {[%emt
00:00:02] [%clk 00:02:02]} Rd4 {[%emt 00:00:38] [%clk 00:00:57]} 48. Rxe5 {[%emt
00:00:27] [%clk 00:01:45]} Rb4 {[%emt 00:00:02] [%clk 00:01:05]} 49. Nd5 {[%emt
00:00:03] [%clk 00:01:52]} Rxa4 {[%emt 00:01:15]} 1/2-1/2

[Site "Europe Echecs"]

[Event "Championnat d'Europe Rapide"]
[Date "2024.12.08"]
[White "Safarli, Eltaj"]
[Black "Magold, Filip"]
[WhiteElo "2610"]
[BlackElo "2428"]
[Round "8.3"]
[Result "1-0"]
[TimeControl "900+10"]

1. e4 {[%emt 00:00:02] [%clk 00:15:17]} c5 {[%emt 00:00:18] [%clk 00:15:03]} 2.
Nf3 {[%emt 00:00:02] [%clk 00:15:25]} d6 {[%emt 00:00:01] [%clk 00:15:12]} 3.
Nc3 {[%emt 00:00:02] [%clk 00:15:33]} Nf6 {[%emt 00:00:02] [%clk 00:15:20]} 4.
e5 {[%emt 00:00:01] [%clk 00:15:42]} dxe5 {[%emt 00:00:25] [%clk 00:15:05]} 5.
Nxe5 {[%emt 00:00:02] [%clk 00:15:50]} a6 {[%emt 00:01:04] [%clk 00:14:11]} 6.
g3 {[%emt 00:00:02] [%clk 00:15:58]} Nbd7 {[%emt 00:00:12] [%clk 00:14:09]} 7.
d4 {[%emt 00:00:16] [%clk 00:15:52]} Nxe5 {[%emt 00:00:44] [%clk 00:13:35]} 8.
dxe5 {[%emt 00:00:01] [%clk 00:16:00]} Qxd1+ {[%emt 00:00:04] [%clk 00:13:42]}
9. Nxd1 {[%emt 00:00:01] [%clk 00:16:09]} Ng4 {[%emt 00:00:02] [%clk 00:13:50]}
10. f4 {[%emt 00:00:59] [%clk 00:15:19]} Bf5 {[%emt 00:00:11] [%clk 00:13:49]}
11. Bg2 {[%emt 00:01:41] [%clk 00:13:49]} O-O-O {[%emt 00:00:07] [%clk
00:13:52]} 12. Bf3 {[%emt 00:00:26] [%clk 00:13:32]} e6 {[%emt 00:02:15] [%clk
00:11:48]} 13. h3 {[%emt 00:00:11] [%clk 00:13:31]} Nh6 {[%emt 00:00:02] [%clk
00:11:56]} 14. Ne3 {[%emt 00:00:03] [%clk 00:13:38]} Bg6 {[%emt 00:00:32] [%clk
00:11:33]} 15. g4 {[%emt 00:00:31] [%clk 00:13:18]} f6 {[%emt 00:00:12] [%clk
00:11:31]} 16. exf6 {[%emt 00:02:05] [%clk 00:11:22]} gxf6 {[%emt 00:00:02]
[%clk 00:11:40]} 17. O-O {[%emt 00:00:09] [%clk 00:11:22]} Bd6 {[%emt 00:02:18]
[%clk 00:09:33]} 18. Nc4 {[%emt 00:00:12] [%clk 00:11:20]} Nf7 {[%emt 00:00:02]
[%clk 00:09:41]} 19. Be3 {[%emt 00:01:09] [%clk 00:10:21]} Kb8 {[%emt 00:01:02]
[%clk 00:08:49]} 20. Nxd6 {[%emt 00:00:36] [%clk 00:09:55]} Nxd6 {[%emt
00:00:02] [%clk 00:08:57]} 21. Bxc5 {[%emt 00:00:04] [%clk 00:10:02]} Bxc2
{[%emt 00:03:13] [%clk 00:05:54]} 22. Rfe1 {[%emt 00:01:05] [%clk 00:09:06]}
Rhe8 {[%emt 00:01:11] [%clk 00:04:53]} 23. Rac1 {[%emt 00:00:49] [%clk
00:08:26]} Bd3 {[%emt 00:00:56] [%clk 00:04:08]} 24. Bd4 {[%emt 00:02:33] [%clk
00:06:04]} e5 {[%emt 00:00:39] [%clk 00:03:38]} 25. fxe5 {[%emt 00:00:12] [%clk
00:06:01]} Nf7 {[%emt 00:00:04] [%clk 00:03:44]} 26. Bb6 {[%emt 00:00:43] [%clk
00:05:29]} Nxe5 {[%emt 00:00:01] [%clk 00:03:53]} 27. Bg2 {[%emt 00:00:14] [%clk
00:05:25]} Rd7 {[%emt 00:00:19] [%clk 00:03:44]} 28. Re3 {[%emt 00:00:32] [%clk
00:05:03]} Re6 {[%emt 00:00:07] [%clk 00:03:46]} 29. Ba5 {[%emt 00:00:22] [%clk
00:04:51]} Bb5 {[%emt 00:01:44] [%clk 00:02:13]} 30. Bc3 {[%emt 00:00:29] [%clk
00:04:32]} Rde7 {[%emt 00:00:43] [%clk 00:01:40]} 31. Bd5 {[%emt 00:00:17] [%clk
00:04:24]} Nd3 {[%emt 00:01:23] [%clk 00:00:27]} 32. Rxe6 {[%emt 00:00:25] [%clk
00:04:09]} Rxe6 {[%emt 00:00:01] [%clk 00:00:36]} 33. Bxe6 {[%emt 00:00:02]
[%clk 00:04:18]} Nxc1 {[%emt 00:00:01] [%clk 00:00:44]} 34. Bxf6 {[%emt
00:00:02] [%clk 00:04:26]} Kc7 {[%emt 00:00:20] [%clk 00:00:34]} 35. Kf2 {[%emt
00:00:47] [%clk 00:03:49]} Kd6 {[%emt 00:00:20] [%clk 00:00:24]} 36. Bg8 {[%emt
00:00:01] [%clk 00:03:58]} Bd3 {[%emt 00:00:01] [%clk 00:00:33]} 37. Bg5 {[%emt
00:00:24] [%clk 00:03:44]} Ne2 {[%emt 00:00:01] [%clk 00:00:42]} 38. Ke3 {[%emt
00:00:02] [%clk 00:03:52]} Bb5 {[%emt 00:00:34] [%clk 00:00:18]} 39. a4 {[%emt
00:00:13] [%clk 00:03:49]} 1-0

[Site "Europe Echecs"]

[Event "Championnat d'Europe Rapide"]
[Date "2024.12.08"]
[White "Pultinevicius, Paulius"]
[Black "Georgiev, Kiril"]
[WhiteElo "2579"]
[BlackElo "2537"]
[Round "8.4"]
[Result "0-1"]
[TimeControl "900+10"]

1. d4 {[%clk 00:15:18]} Nf6 {[%emt 00:00:03] [%clk 00:15:17]} 2. c4 {[%emt
00:00:03] [%clk 00:15:27]} e6 {[%emt 00:00:06] [%clk 00:15:21]} 3. Nc3 {[%emt
00:00:02] [%clk 00:15:35]} Bb4 {[%emt 00:00:28] [%clk 00:15:02]} 4. Qb3 {[%emt
00:00:03] [%clk 00:15:43]} c5 {[%emt 00:00:25] [%clk 00:14:46]} 5. dxc5 {[%emt
00:00:02] [%clk 00:15:51]} Nc6 {[%emt 00:00:01] [%clk 00:14:55]} 6. Nf3 {[%emt
00:00:08] [%clk 00:15:53]} Ne4 {[%emt 00:00:12] [%clk 00:14:52]} 7. Bd2 {[%emt
00:00:02] [%clk 00:16:02]} Nxd2 {[%emt 00:00:09] [%clk 00:14:53]} 8. Nxd2 {[%emt
00:00:01] [%clk 00:16:11]} Bxc5 {[%emt 00:00:01] [%clk 00:15:02]} 9. g3 {[%emt
00:00:02] [%clk 00:16:20]} b6 {[%emt 00:02:33] [%clk 00:12:38]} 10. Bg2 {[%emt
00:00:01] [%clk 00:16:29]} Bb7 {[%emt 00:00:10] [%clk 00:12:38]} 11. O-O {[%emt
00:00:03] [%clk 00:16:36]} O-O {[%emt 00:00:36] [%clk 00:12:11]} 12. a3 {[%emt
00:00:36] [%clk 00:16:11]} Be7 {[%emt 00:01:17] [%clk 00:11:02]} 13. Qa4 {[%emt
00:00:17] [%clk 00:16:06]} a6 {[%emt 00:00:14] [%clk 00:10:57]} 14. Rfd1 {[%emt
00:00:07] [%clk 00:16:10]} Qb8 {[%emt 00:00:38] [%clk 00:10:29]} 15. Rac1 {[%emt
00:00:59] [%clk 00:15:21]} Rd8 {[%emt 00:00:12] [%clk 00:10:26]} 16. Nf3 {[%emt
00:07:33] [%clk 00:08:00]} h6 {[%emt 00:01:39] [%clk 00:08:56]} 17. Rd3 {[%emt
00:00:27] [%clk 00:07:43]} Ra7 {[%emt 00:00:28] [%clk 00:08:37]} 18. Qd1 {[%emt
00:03:44] [%clk 00:04:10]} Ba8 {[%emt 00:01:10] [%clk 00:07:36]} 19. b4 {[%emt
00:00:08] [%clk 00:04:13]} d6 {[%emt 00:00:38] [%clk 00:07:08]} 20. Qb3 {[%emt
00:02:08] [%clk 00:02:15]} b5 {[%emt 00:01:58] [%clk 00:05:20]} 21. cxb5 {[%emt
00:00:03] [%clk 00:02:22]} axb5 {[%emt 00:00:01] [%clk 00:05:29]} 22. Rcd1
{[%emt 00:00:22] [%clk 00:02:10]} Qb6 {[%emt 00:00:39] [%clk 00:05:00]} 23. Bh3
{[%emt 00:00:35] [%clk 00:01:46]} d5 {[%emt 00:00:49] [%clk 00:04:21]} 24. R3d2
{[%emt 00:00:54] [%clk 00:01:01]} Bb7 {[%emt 00:00:45] [%clk 00:03:46]} 25. Bf1
{[%emt 00:00:02] [%clk 00:01:10]} Rda8 {[%emt 00:00:16] [%clk 00:03:39]} 26. Ra2
{[%emt 00:00:01] [%clk 00:01:19]} d4 {[%emt 00:00:21] [%clk 00:03:27]} 27. Nb1
{[%emt 00:00:01] [%clk 00:01:28]} Nxb4 {[%emt 00:00:17] [%clk 00:03:20]} 28.
Rad2 {[%emt 00:00:01] [%clk 00:01:38]} Nc6 {[%emt 00:01:09] [%clk 00:02:20]} 29.
Nxd4 {[%emt 00:00:02] [%clk 00:01:46]} Nxd4 {[%emt 00:00:05] [%clk 00:02:25]}
30. Rxd4 {[%emt 00:00:01] [%clk 00:01:55]} Bc5 {[%emt 00:00:13] [%clk 00:02:22]}
31. Rf4 {[%emt 00:00:22] [%clk 00:01:43]} g5 {[%emt 00:00:57] [%clk 00:01:35]}
32. Rf6 {[%emt 00:00:02] [%clk 00:01:52]} Qc6 {[%emt 00:00:11] [%clk 00:01:33]}
33. Qf3 {[%emt 00:01:21] [%clk 00:00:42]} Qxf3 {[%emt 00:00:11] [%clk 00:01:31]}
34. Rxf3 {[%emt 00:00:02] [%clk 00:00:51]} Bxf3 {[%emt 00:00:08] [%clk
00:01:32]} 35. exf3 {[%emt 00:00:01] [%clk 00:01:00]} Ra5 {[%emt 00:00:42] [%clk
00:01:00]} 36. Kg2 {[%emt 00:00:39] [%clk 00:00:32]} Rb8 {[%emt 00:00:22] [%clk
00:00:48]} 37. Rd3 {[%emt 00:00:06] [%clk 00:00:35]} b4 {[%emt 00:00:11] [%clk
00:00:47]} 38. axb4 {[%emt 00:00:04] [%clk 00:00:42]} Rxb4 {[%emt 00:00:08]
[%clk 00:00:48]} 39. Nc3 {[%emt 00:00:03] [%clk 00:00:49]} Rb2 {[%emt 00:00:05]
[%clk 00:00:51]} 40. Nd1 {[%emt 00:00:31] [%clk 00:00:30]} Rc2 {[%emt 00:00:04]
[%clk 00:00:55]} 41. Rd7 {[%emt 00:00:31] [%clk 00:00:11]} Raa2 {[%emt 00:00:19]
[%clk 00:00:45]} 42. Rc7 {[%emt 00:00:02] [%clk 00:00:20]} Rxf2+ {[%emt
00:00:24] [%clk 00:00:31]} 43. Nxf2 {[%emt 00:00:03] [%clk 00:00:27]} Rxf2+
{[%emt 00:00:02] [%clk 00:00:39]} 44. Kg1 {[%emt 00:00:14] [%clk 00:00:23]} Be3
{[%emt 00:00:05] [%clk 00:00:43]} 45. Rc3 {[%emt 00:00:17] [%clk 00:00:17]}
Rxf3+ {[%emt 00:00:05] [%clk 00:00:47]} 46. Kg2 {[%clk 00:00:27]} Rf2+ {[%emt
00:00:03] [%clk 00:00:53]} 47. Kg1 {[%emt 00:00:02] [%clk 00:00:36]} Bd4 {[%emt
00:00:31] [%clk 00:00:31]} 48. Rc4 {[%emt 00:00:02] [%clk 00:00:45]} Rd2+ {[%emt
00:00:02] [%clk 00:00:39]} 49. Kh1 {[%clk 00:00:54]} Kg7 {[%emt 00:00:13] [%clk
00:00:36]} 50. Rc7 {[%emt 00:00:04] [%clk 00:00:59]} g4 {[%emt 00:00:06] [%clk
00:00:41]} 51. Rc1 {[%emt 00:00:31] [%clk 00:00:39]} h5 {[%emt 00:00:03] [%clk
00:00:48]} 52. Bb5 {[%emt 00:00:03] [%clk 00:00:46]} h4 {[%emt 00:00:18] [%clk
00:00:39]} 53. gxh4 {[%emt 00:00:03] [%clk 00:00:54]} Be5 {[%emt 00:00:01] [%clk
00:00:47]} 54. Rc4 {[%emt 00:00:32] [%clk 00:00:31]} Rxh2+ {[%emt 00:00:14]
[%clk 00:00:44]} 55. Kg1 {[%clk 00:00:41]} Rxh4 {[%emt 00:00:12] [%clk
00:00:42]} 56. Be8 {[%emt 00:00:05] [%clk 00:00:47]} Kf6 {[%emt 00:00:15] [%clk
00:00:37]} 57. Re4 {[%emt 00:00:22] [%clk 00:00:34]} Rh8 {[%emt 00:00:13] [%clk
00:00:33]} 58. Ba4 {[%emt 00:00:27] [%clk 00:00:19]} g3 {[%emt 00:00:08] [%clk
00:00:34]} 59. Rb4 {[%emt 00:00:15] [%clk 00:00:14]} Rh2 {[%emt 00:00:13] [%clk
00:00:31]} 60. Bc6 {[%emt 00:00:13] [%clk 00:00:12]} Ke7 {[%emt 00:00:12] [%clk
00:00:29]} 61. Rb7+ {[%emt 00:00:03] [%clk 00:00:19]} Kd6 {[%emt 00:00:02] [%clk
00:00:36]} 62. Bg2 {[%emt 00:00:04] [%clk 00:00:25]} f5 {[%emt 00:00:02] [%clk
00:00:45]} 63. Kf1 {[%emt 00:00:17] [%clk 00:00:18]} Rh4 {[%emt 00:00:02] [%clk
00:00:52]} 64. Bf3 {[%emt 00:00:17] [%clk 00:00:12]} Ra4 {[%emt 00:00:06] [%clk
00:00:53]} 65. Rb1 {[%emt 00:00:11] [%clk 00:00:13]} Ra2 {[%emt 00:00:03] [%clk
00:00:59]} 66. Rd1+ {[%emt 00:00:13] [%clk 00:00:11]} Ke7 {[%emt 00:00:02] [%clk
00:01:07]} 67. Kg1 {[%emt 00:00:03] [%clk 00:00:18]} Bb8 {[%emt 00:00:07] [%clk
00:01:09]} 68. Bg2 {[%emt 00:00:04] [%clk 00:00:26]} Ba7+ {[%emt 00:00:06] [%clk
00:01:13]} 69. Kh1 {[%emt 00:00:01] [%clk 00:00:34]} Kf6 {[%emt 00:00:11] [%clk
00:01:12]} 70. Re1 {[%emt 00:00:22] [%clk 00:00:22]} e5 {[%emt 00:00:08] [%clk
00:01:14]} 71. Rc1 {[%emt 00:00:19] [%clk 00:00:14]} Bd4 {[%emt 00:00:07] [%clk
00:01:16]} 72. Rf1 {[%emt 00:00:10] [%clk 00:00:14]} Kg5 {[%emt 00:00:03] [%clk
00:01:23]} 73. Rd1 {[%emt 00:00:05] [%clk 00:00:20]} Ra7 {[%emt 00:00:13] [%clk
00:01:19]} 74. Bh3 {[%emt 00:00:07] [%clk 00:00:23]} Ra2 {[%emt 00:00:03] [%clk
00:01:26]} 75. Bg2 {[%emt 00:00:01] [%clk 00:00:32]} f4 {[%emt 00:00:07] [%clk
00:01:29]} 76. Rf1 {[%emt 00:00:03] [%clk 00:00:39]} e4 {[%emt 00:00:09] [%clk
00:01:30]} 77. Rd1 {[%emt 00:00:02] [%clk 00:00:48]} f3 {[%emt 00:00:11] [%clk
00:01:28]} 0-1

[Site "Europe Echecs"]